bitfinex/quotes_SOLUSD_20260305
["timestamp","ask_amount","ask_price","bid_price","bid_amount"]
[1772701893007,0.1,91.32,91.273,0.5]
[1772701893892,10.94550093,91.362,91.283,0.49016333]
[1772701894184,10.94550093,91.362,91.287,0.49016333]
[1772701894383,10.94550093,91.362,91.289,0.49016333]
[1772701894582,0.10050282,91.357,91.292,0.49016333]
[1772701894798,0.10050282,91.357,91.294,0.49016333]
[1772701894993,0.10050282,91.357,91.296,0.49016333]
[1772701895199,100.10050282,91.355,91.297,0.49016333]
[1772701895386,10.94642818,91.354,91.298,0.49016333]
[1772701895585,0.10049704,91.353,91.298,0.49016333]
[1772701895784,10.94642818,91.354,91.298,0.49016333]
[1772701895785,0.10049704,91.349,91.298,0.49016333]
[1772701896599,11.04871717,91.339,91.297,0.81855515]
[1772701896813,8.90761109,91.31,91.297,0.71820664]
[1772701897003,8.90761109,91.31,91.264,0.50017425]
[1772701897313,8.90761109,91.31,91.259,0.50017425]
[1772701897695,8.90761109,91.32,91.259,0.50017425]
[1772701898012,8.90761109,91.31,91.259,0.50017425]
[1772701898220,8.90761109,91.31,91.26,0.50017425]
[1772701898710,19.86053503,91.3,91.259,0.50017425]
[1772701899014,8.90761109,91.32,91.259,0.50017425]
[1772701899604,0.45052648,91.325,91.232,45.58940963]
[1772701899788,27.37447309,91.326,91.232,45.58940963]
[1772701899789,0.45052648,91.309,91.232,45.58940963]
[1772701899993,0.45052648,91.299,91.232,45.58940963]
[1772701900408,0.45052648,91.299,91.233,0.7785426]
[1772701900811,0.45052648,91.299,91.234,93.16702104]
[1772701901033,27.37447309,91.326,91.234,93.16702104]
[1772701901034,0.45052648,91.309,91.235,0.77852554]
[1772701901713,0.45052648,91.309,91.236,0.49016333]
[1772701901919,0.45052648,91.309,91.238,0.49016333]
[1772701902094,0.45052648,91.309,91.24,0.49016333]
[1772701902296,0.45052648,91.309,91.241,0.49016333]
[1772701902496,3.69383402,91.336,91.242,0.77846581]
[1772701902691,8.88548065,91.35,91.255,4.82477569]
[1772701902910,10.94702733,91.349,91.264,0.49016333]
[1772701903112,10.94702733,91.349,91.274,0.49016333]
[1772701903317,10.94702733,91.349,91.276,0.49016333]
[1772701903494,10.94702733,91.349,91.277,0.49016333]
[1772701904016,10.94647003,91.354,91.277,0.49016333]
[1772701904717,0.04974722,91.353,91.277,0.49016333]
[1772701905013,0.04974722,91.353,91.28,0.49016333]
[1772701905700,0.04974208,91.349,91.28,0.49016333]
[1772701906520,10.99564093,91.359,91.282,0.49016333]
[1772701906815,10.94642818,91.354,91.282,0.49016333]
[1772701907192,0.04973196,91.353,91.285,0.49016333]
[1772701908094,10.94642818,91.354,91.285,0.49016333]
[1772701908095,8.88548065,91.35,91.285,0.49016333]
[1772701908301,38.31249863,91.354,91.284,0.28432314]
[1772701908302,0.04972699,91.339,91.284,0.49016333]
[1772701908899,0.04972208,91.329,91.283,38.34229812]
[1772701909225,0.04971722,91.353,91.288,0.47535037]
[1772701909902,0.04971722,91.329,91.287,1.14172441]
[1772701910819,8.88548065,91.32,91.287,1.09213545]
[1772701911121,8.88548065,91.32,91.191,43.86389638]
[1772701911122,8.88548065,91.31,91.226,0.50014485]
[1772701911294,10.9542223,91.289,91.236,0.50014485]
[1772701911492,8.88548065,91.3,91.236,0.50014485]
[1772701911697,8.88548065,91.3,91.237,0.50014485]
[1772701913217,27.37913633,91.311,91.238,93.16293649]
[1772701913402,10.95122325,91.314,91.24,0.50014485]
[1772701913717,3.69383402,91.33,91.238,93.16293649]
[1772701913718,8.88548065,91.33,91.243,0.50014485]
[1772701913907,8.88548065,91.32,91.243,0.50014485]
[1772701915417,8.88548065,91.33,91.246,0.50014485]
[1772701915617,27.36936601,91.343,91.246,0.50014485]
[1772701915915,27.36936601,91.343,91.249,0.50014485]
[1772701916116,27.36936601,91.343,91.251,0.50014485]
[1772701916319,27.36936601,91.343,91.254,0.50014485]
[1772701916499,43.74694945,91.435,91.264,0.50014485]
[1772701916698,43.74694945,91.435,91.255,1.09583036]
[1772701916699,6.1336789,91.355,91.27,0.50014485]
[1772701916902,6.1336789,91.355,91.284,0.50014485]
[1772701917100,6.1336789,91.355,91.287,0.50014485]
[1772701917602,6.1336789,91.355,91.293,0.50014485]
[1772701918902,0.2813489,91.37,91.303,0.50014485]
[1772701919630,0.2813489,91.37,91.295,3.69383402]
[1772701919631,0.2813489,91.37,91.306,0.50014485]
[1772701920518,0.2813489,91.37,91.305,0.28432314]
[1772701920519,1e-08,91.37,91.309,0.50014485]
[1772701920720,1e-08,91.37,91.315,0.50014485]
[1772701920927,54.67811783,91.445,91.315,0.50014485]
[1772701920928,10.93965685,91.411,91.324,0.50014485]
[1772701921130,10.93866566,91.419,91.324,0.50014485]
[1772701921320,8.88548065,91.45,91.352,3.69383402]
[1772701921521,10.93290476,91.467,91.364,0.50014485]
[1772701921834,8.88548065,91.47,91.381,0.50014485]
[1772701922023,8.88548065,91.46,91.381,0.50014485]
[1772701922328,6.78890357,91.507,91.39,8.51860971]
[1772701922329,8.88548065,91.49,91.39,8.51860971]
[1772701922513,8.88548065,91.49,91.367,1.02424265]
[1772701922514,6.78890357,91.507,91.409,5.32492054]
[1772701922715,1e-08,91.497,91.436,0.50014485]
[1772701922918,1e-08,91.507,91.446,4.82477569]
[1772701923116,1e-08,91.507,91.463,0.50014485]
[1772701923315,5.70544598,91.58,91.468,0.50014485]
[1772701923544,6.76771975,91.591,91.482,3.69383402]
[1772701923722,10.91834501,91.589,91.502,0.50014485]
[1772701923907,6.76771975,91.591,91.511,0.50014485]
[1772701924113,8.88548065,91.59,91.511,0.50014485]
[1772701924336,10.91512399,91.616,91.517,0.50014485]
[1772701924632,10.91512399,91.616,91.471,1.04232642]
[1772701924633,8.88548065,91.58,91.522,0.50014485]
[1772701924820,3.69383402,91.604,91.522,0.50014485]
[1772701925025,8.88548065,91.56,91.472,0.50014485]
[1772701925221,3.69383402,91.59,91.476,0.50014485]
[1772701925436,8.88548065,91.57,91.478,0.50014485]
[1772701925638,8.88548065,91.57,91.482,0.50014485]
[1772701925816,8.88548065,91.54,91.482,0.50014485]
[1772701926025,3.69383402,91.576,91.482,0.50014485]
[1772701926219,10.91953395,91.579,91.485,0.50014485]
[1772701926444,8.88548065,91.56,91.485,0.50014485]
[1772701926621,8.88548065,91.54,91.485,0.50014485]
[1772701927128,3.69383402,91.576,91.485,0.50014485]
[1772701927129,8.88548065,91.53,91.485,0.50014485]
[1772701927326,3.69383402,91.576,91.485,0.50014485]
[1772701927327,8.88548065,91.55,91.485,0.50014485]
[1772701927540,10.92191919,91.559,91.488,0.50014485]
[1772701927712,10.92191919,91.559,91.475,0.50014485]
[1772701927713,8.88548065,91.53,91.475,0.50014485]
[1772701927918,8.88548065,91.52,91.466,0.50014485]
[1772701928624,38.22671718,91.559,91.466,0.50014485]
[1772701928825,8.88548065,91.54,91.469,0.50014485]
[1772701929328,8.88548065,91.53,91.471,0.50014485]
[1772701929522,38.24342485,91.519,91.471,0.50014485]
[1772701929723,8.88548065,91.51,91.471,0.50014485]
[1772701929931,10.92669281,91.519,91.473,0.50014485]
[1772701930136,8.88548065,91.53,91.473,0.50014485]
[1772701930438,8.88548065,91.53,91.474,0.50014485]
[1772701930642,8.88548065,91.52,91.474,0.50014485]
[1772701930826,27.30851548,91.547,91.471,2.58009402]
[1772701930827,8.88548065,91.51,91.471,2.58009402]
[1772701931053,8.88548065,91.51,91.472,10.93230715]
[1772701931222,8.88548065,91.51,91.471,2.58009402]
[1772701931538,27.30851548,91.547,91.471,1.93211358]
[1772701931539,10.92908119,91.499,91.471,1.93211358]
[1772701931720,8.88548065,91.51,91.471,1.93211358]
[1772701931919,3.69383402,91.547,91.471,1.93211358]
[1772701931920,8.88548065,91.52,91.472,10.93230715]
[1772701932128,8.88548065,91.51,91.471,1.93211358]
[1772701932328,8.88548065,91.5,91.471,1.93211358]
[1772701932524,38.23924657,91.529,91.364,43.78083978]
[1772701932525,8.88548065,91.49,91.42,0.50014485]
[1772701932732,8.88548065,91.48,91.422,0.50014485]
[1772701932917,8.88548065,91.48,91.423,0.50014485]
[1772701933125,8.88548065,91.48,91.424,0.50014485]
[1772701933329,8.88548065,91.46,91.423,3.00831717]
[1772701933526,10.93386107,91.459,91.423,2.50817232]
[1772701933721,38.26851375,91.459,91.423,2.50817232]
[1772701933924,8.88548065,91.45,91.423,2.50817232]
[1772701934243,8.88548065,91.44,91.423,2.50817232]
[1772701934420,38.26851375,91.459,91.344,0.50014485]
[1772701934421,8.88548065,91.43,91.344,0.50014485]
[1772701934624,8.88548065,91.42,91.345,0.50014485]
[1772701934937,8.88548065,91.42,91.344,38.31669293]
[1772701934938,8.88548065,91.42,91.346,0.50014485]
[1772701935522,38.28525797,91.419,91.348,0.50014485]
[1772701935738,8.88548065,91.41,91.348,0.50014485]
[1772701936042,38.28525797,91.419,91.348,0.50014485]
[1772701936044,8.88548065,91.4,91.348,0.50014485]
[1772701936239,8.88548065,91.4,91.349,0.50014485]
[1772701936435,8.88548065,91.38,91.336,0.50014485]
[1772701936738,8.88548065,91.37,91.324,0.50014485]
[1772701936938,8.88548065,91.39,91.324,0.50014485]
[1772701937331,8.88548065,91.38,91.324,0.50014485]
[1772701937745,10.94343339,91.379,91.326,0.50014485]
[1772701938044,10.93900411,91.416,91.326,0.50014485]
[1772701938336,8.88548065,91.4,91.327,0.50014485]
[1772701938574,10.93900411,91.416,91.329,0.50014485]
[1772701938745,10.93900411,91.416,91.33,0.50014485]
[1772701940034,10.93900411,91.416,91.333,0.50014485]
[1772701940238,10.93744873,91.429,91.336,0.50014485]
[1772701940440,0.49253264,91.428,91.335,0.23750398]
[1772701940747,0.49253264,91.419,91.335,0.23750398]
[1772701941142,0.49253264,91.419,91.336,1.09485854]
[1772701941645,0.49253264,91.409,91.335,0.23750398]
[1772701941841,0.49253264,91.409,91.336,1.09485854]
[1772701942149,10.93996149,91.408,91.338,0.14216157]
[1772701942449,10.93996149,91.408,91.339,0.48490805]
[1772701942645,0.49253264,91.407,91.339,0.48490805]
[1772701943151,8.88548065,91.39,91.339,0.48490805]
[1772701943333,0.49253264,91.389,91.339,0.48490805]
[1772701943529,0.49253264,91.399,91.339,0.48490805]
[1772701944134,0.49253264,91.389,91.34,10.94810597]
[1772701944446,0.49253264,91.359,91.301,0.48490805]
[1772701944846,0.49253264,91.359,91.317,10.95085536]
[1772701945063,0.49253264,91.359,91.301,0.48490805]
[1772701945467,3.69383402,91.387,91.302,10.95266259]
[1772701945468,0.49253264,91.349,91.302,10.95266259]
[1772701945647,0.49253264,91.349,91.302,38.33431907]
[1772701945955,0.49253264,91.349,91.302,10.95266259]
[1772701946130,0.49253264,91.338,91.297,10.95324092]
[1772701946331,0.49253264,91.338,91.291,10.95389621]
[1772701946532,0.49253264,91.338,91.257,3.69383402]
[1772701946533,0.49253264,91.319,91.274,0.48490805]
[1772701946741,0.49253264,91.319,91.275,10.95590249]
[1772701946947,0.49253264,91.319,91.276,0.48490805]
[1772701947335,11.40293827,91.339,91.276,0.48490805]
[1772701947542,0.45471243,91.338,91.276,0.48490805]
[1772701947738,0.45471243,91.329,91.276,0.48490805]
[1772701948360,27.3705646,91.339,91.278,0.48926013]
[1772701948570,0.45471243,91.337,91.279,0.48926013]
[1772701949463,10.94702733,91.349,91.279,0.48926013]
[1772701949648,0.45471243,91.348,91.279,0.48926013]
[1772701949958,10.94702733,91.349,91.279,0.48926013]
[1772701950351,38.30980074,91.361,91.281,0.48926013]
[1772701950549,43.7408773,91.448,91.285,0.48926013]
[1772701950550,0.45471243,91.375,91.285,0.48926013]
[1772701951257,0.45471243,91.375,91.29,0.28432314]
[1772701951474,0.45471243,91.375,91.291,0.48926013]
[1772701951638,0.45471243,91.369,91.293,0.48926013]
[1772701952240,0.45471243,91.359,91.293,0.48926013]
[1772701952538,0.45471243,91.359,91.283,3.69383402]
[1772701952539,0.45471243,91.347,91.295,0.48926013]
[1772701952847,0.45471243,91.339,91.295,0.48926013]
[1772701953359,38.76972753,91.348,91.295,0.48926013]
[1772701953542,0.45471243,91.347,91.296,0.48926013]
[1772701954239,0.45471243,91.329,91.284,10.95482231]
[1772701954441,0.45471243,91.327,91.272,10.95626259]
[1772701954640,0.45471243,91.327,91.273,0.48926013]
[1772701955265,0.45471243,91.342,91.274,0.48926013]
[1772701955766,8.88548065,91.35,91.274,0.48926013]
[1772701955954,0.45471243,91.349,91.274,0.48926013]
[1772701956152,0.45471243,91.339,91.274,0.48926013]
[1772701956456,0.45471243,91.337,91.276,0.48926013]
[1772701956664,0.45471243,91.337,91.277,0.48926013]
[1772701956960,0.45471243,91.342,91.277,0.48926013]
[1772701957757,11.40097922,91.356,91.277,0.48926013]
[1772701958062,0.45471243,91.355,91.277,0.48926013]
[1772701958274,92.9973377,91.401,91.285,4.82477569]
[1772701958449,0.45471243,91.389,91.287,0.48926013]
[1772701958646,0.45471243,91.387,91.293,0.48926013]
[1772701958856,0.45471243,91.387,91.298,0.48926013]
[1772701959949,0.45471243,91.387,91.308,0.48926013]
[1772701960771,0.45471243,91.385,91.314,0.48926013]
[1772701961092,38.25379543,91.386,91.314,0.48926013]
[1772701961254,10.89730757,91.386,91.314,0.48926013]
[1772701961454,10.94139787,91.396,91.314,0.48926013]
[1772701961946,10.94139787,91.396,91.317,0.48926013]
[1772701962170,8.86952469,91.39,91.317,0.48926013]
[1772701962756,10.94223593,91.389,91.32,0.48926013]
[1772701962945,10.99404128,91.389,91.32,0.48926013]
[1772701963147,0.05230495,91.388,91.32,0.48926013]
[1772701963360,10.94223593,91.389,91.32,0.48926013]
[1772701963560,0.05230495,91.388,91.32,0.48926013]
[1772701964072,0.05230495,91.379,91.32,0.48926013]
[1772701964277,0.05279947,91.369,91.32,0.48926013]
[1772701964477,8.86952469,91.38,91.32,0.48926013]
[1772701964974,0.05279947,91.369,91.322,0.48926013]
[1772701965671,0.05279947,91.369,91.321,10.95038381]
[1772701965871,0.05328868,91.359,91.321,10.95038381]
[1772701966056,0.05328868,91.359,91.321,38.32634333]
[1772701966453,0.05328868,91.359,91.322,0.48926013]
[1772701966655,0.05328868,91.359,91.312,10.95146311]
[1772701966962,0.05377161,91.358,91.312,10.95146311]
[1772701967360,0.05377161,91.358,91.313,0.48926013]
[1772701967556,10.94582909,91.359,91.313,0.48926013]
[1772701967757,0.05424815,91.378,91.314,0.48926013]
[1772701968768,0.05424815,91.378,91.317,0.47742864]
[1772701968953,10.94343339,91.379,91.317,0.47742864]
[1772701969159,10.94223593,91.389,91.317,0.47742864]
[1772701969853,0.05564943,91.401,91.32,0.47742864]
[1772701970057,0.05564943,91.401,91.319,0.28432314]
[1772701970058,0.05564943,91.418,91.33,0.47742864]
[1772701970271,0.05564943,91.418,91.331,0.47742864]
[1772701970964,0.05610148,91.438,91.34,4.82477569]
[1772701971274,0.05610148,91.438,91.349,0.47742864]
[1772701971474,0.05610148,91.438,91.352,0.47742864]
[1772701971680,8.86952469,91.43,91.355,0.47742864]
[1772701971859,0.05654888,91.429,91.358,0.47742864]
[1772701972275,38.27688403,91.439,91.358,0.47742864]
[1772701972276,0.05699113,91.419,91.358,0.47742864]
[1772701973073,0.05699113,91.409,91.36,0.47742864]
[1772701973469,0.05743034,91.399,91.359,10.94582909]
[1772701975578,0.05743034,91.399,91.314,3.69383402]
[1772701975579,0.05829419,91.389,91.326,0.47742864]
[1772701975879,8.92781888,91.36,91.327,10.94966439]
[1772701976379,8.92781888,91.36,91.317,0.47742864]
[1772701976569,0.0587184,91.359,91.316,10.95098339]
[1772701976882,0.0587184,91.349,91.316,10.95098339]
[1772701977079,3.69383402,91.417,91.317,0.50678784]
[1772701977378,8.86952469,91.39,91.318,0.50678784]
[1772701977683,8.86952469,91.37,91.321,0.50678784]
[1772701978660,8.86952469,91.36,91.319,10.95062363]
[1772701979080,3.69383402,91.402,91.319,10.95062363]
[1772701979281,8.86952469,91.37,91.319,10.95062363]
[1772701979665,8.86952469,91.36,91.319,27.37655909]
[1772701979862,8.86952469,91.36,91.314,10.95122325]
[1772701980064,38.30620888,91.369,91.314,10.95122325]
[1772701980065,8.86952469,91.35,91.314,10.95122325]
[1772701980295,8.86952469,91.35,91.258,4.82477569]
[1772701980296,8.86952469,91.33,91.262,0.50678784]
[1772701980579,38.30620888,91.369,91.262,0.28432314]
[1772701980580,8.86952469,91.34,91.262,0.28432314]
[1772701980781,8.86952469,91.34,91.263,0.50678784]
[1772701981880,10.94822584,91.339,91.266,0.50678784]
[1772701982081,8.86952469,91.33,91.266,0.50678784]
[1772701982972,10.94822584,91.339,91.266,0.50678784]
[1772701983173,10.94822584,91.339,91.265,0.28432314]
[1772701983174,8.86952469,91.36,91.269,0.50678784]
[1772701983377,10.94475089,91.368,91.268,0.28432314]
[1772701983378,10.93625258,91.439,91.278,3.69383402]
[1772701983574,8.86952469,91.41,91.302,0.50678784]
[1772701983766,10.93996149,91.408,91.321,0.50678784]
[1772701984077,8.86952469,91.4,91.322,0.50678784]
[1772701984462,10.93996149,91.408,91.322,0.50678784]
[1772701985982,11.1628004,91.408,91.326,3.69383402]
[1772701986171,0.22283891,91.407,91.327,0.28432314]
[1772701986371,0.22343147,91.399,91.327,0.28432314]
[1772701986585,0.22343147,91.379,91.323,93.07622394]
[1772701987089,0.22343147,91.379,91.324,0.28432314]
[1772701988092,0.22343147,91.379,91.328,0.45643257]
[1772701988289,10.94355315,91.378,91.328,0.45643257]
[1772701988490,0.2245882,91.369,91.328,0.45643257]
[1772701988683,0.2245882,91.359,91.326,10.94978428]
[1772701988883,0.2245882,91.339,91.268,0.45643257]
[1772701989081,0.2245882,91.339,91.283,0.45643257]
[1772701990282,10.9483457,91.338,91.285,0.45643257]
[1772701990882,10.9483457,91.338,91.286,0.45643257]
[1772701991133,9.09581725,91.33,91.286,0.45643257]
[1772701992294,0.226843,91.319,91.287,10.9544623]
[1772701992705,8.86952469,91.31,91.274,10.95602252]
[1772701993076,0.226843,91.319,91.274,10.95602252]
[1772701993077,0.226843,91.319,91.275,0.45643257]
[1772701993498,0.22738609,91.309,91.274,10.95602252]
[1772701993884,0.22738609,91.309,91.266,10.95688422]
[1772701993885,8.86952469,91.29,91.266,10.95688422]
[1772701994087,0.22738609,91.299,91.266,10.95688422]
[1772701994290,0.22792537,91.309,91.269,0.45643257]
[1772701994586,0.22792537,91.309,91.222,1.80836858]
[1772701994587,0.22792537,91.299,91.262,10.95735998]
[1772701994787,8.86952469,91.31,91.263,0.45643257]
[1772701995004,8.86952469,91.31,91.264,0.45643257]
[1772701995709,0.2284569,91.325,91.264,0.45643257]
[1772701996604,0.2284569,91.325,91.267,0.45643257]
[1772701996605,10.95002409,91.324,91.267,0.45643257]
[1772701996780,8.86952469,91.32,91.267,0.45643257]
[1772701996985,0.22898689,91.32,91.267,0.45643257]
[1772701997485,0.22951086,91.309,91.267,0.45643257]
[1772701997801,0.22951086,91.32,91.267,0.45643257]
[1772701998202,8.86952469,91.31,91.267,0.45643257]
[1772701998403,0.23002269,91.309,91.267,0.45643257]
[1772701999098,8.86952469,91.31,91.267,0.45643257]
[1772701999099,0.23052907,91.307,91.268,10.95674277]
[1772701999296,0.23102985,91.319,91.269,0.46846957]
[1772701999490,10.9508125,91.318,91.269,0.46846957]
[1772701999691,0.23102985,91.317,91.269,0.46846957]
[1772701999885,0.23102985,91.309,91.269,0.46846957]
[1772702000107,0.23102985,91.309,91.268,10.95674277]
[1772702000691,8.86952469,91.29,91.259,10.95782333]
[1772702000884,0.23152602,91.289,91.259,10.95782333]
[1772702001098,0.23152602,91.289,91.249,0.46846957]
[1772702001301,10.9543423,91.288,91.249,0.46846957]
[1772702001501,0.23202341,91.287,91.249,0.46846957]
[1772702002012,10.9543423,91.288,91.249,0.46846957]
[1772702002203,10.9533824,91.296,91.249,0.46846957]
[1772702002808,0.23251484,91.289,91.248,38.35700508]
[1772702002983,10.9543423,91.288,91.24,10.96010521]
[1772702003187,0.23251484,91.287,91.242,0.46846957]
[1772702003505,8.86952469,91.3,91.242,0.46846957]
[1772702003689,0.23300152,91.309,91.242,0.46846957]
[1772702003893,9.10252621,91.33,91.245,0.46846957]
[1772702004412,0.23347544,91.329,91.245,0.46846957]
[1772702004587,0.23347544,91.319,91.245,0.46846957]
[1772702006119,11.18515256,91.318,91.248,0.46846957]
[1772702006408,0.23440901,91.317,91.248,0.46846957]
[1772702007706,10.95074355,91.318,91.248,0.46846957]
[1772702007707,0.23532163,91.299,91.248,0.46846957]
[1772702008009,0.23532163,91.289,91.248,0.46846957]
[1772702008389,0.23532163,91.289,91.226,54.80848042]
[1772702008390,0.23532163,91.289,91.25,0.47666397]
[1772702008590,0.23577176,91.298,91.25,0.47666397]
[1772702008988,0.23577176,91.298,91.251,0.47666397]
[1772702009403,10.95253655,91.304,91.251,0.47666397]
[1772702009613,0.23621655,91.32,91.251,0.47666397]
[1772702009819,10.95062363,91.319,91.251,0.47666397]
[1772702009983,11.18684018,91.319,91.251,0.47666397]
[1772702010187,0.2366601,91.318,91.251,0.47666397]
[1772702010616,11.18752357,91.317,91.254,0.47666397]
[1772702011212,0.2366601,91.316,91.254,0.47666397]
[1772702013410,10.95029659,91.322,91.257,0.47666397]
[1772702013636,0.23794732,91.319,91.257,0.47666397]
[1772702014814,38.32426852,91.326,91.257,0.47666397]
[1772702014815,0.2383676,91.299,91.257,0.47666397]
[1772702015114,0.2383676,91.289,91.255,10.95830365]
[1772702015311,0.23878514,91.287,91.247,38.35742544]
[1772702016506,0.23919689,91.285,91.247,38.35742544]
[1772702017394,0.23919689,91.285,91.247,10.95926441]
[1772702017599,0.2396053,91.279,91.247,10.95926441]
[1772702017909,0.2396053,91.279,91.235,27.87820377]
[1772702017910,0.2396053,91.269,91.24,10.96009872]
[1772702018092,8.86952469,91.28,91.225,0.51710599]
[1772702018509,10.95542238,91.279,91.226,38.36625522]
[1772702018705,10.95542238,91.279,91.227,0.51710599]
[1772702019492,10.95542238,91.279,91.226,38.36625522]
[1772702019493,8.86952469,91.26,91.226,10.9617872]
[1772702019899,8.86952469,91.26,91.226,38.88336121]
[1772702020105,8.86952469,91.27,91.227,0.51710599]
[1772702021608,8.86952469,91.27,91.229,0.51710599]
[1772702022616,8.89382415,91.27,91.229,0.51710599]
[1772702023411,8.89382415,91.26,91.223,10.96208896]
[1772702023728,10.95782333,91.259,91.223,10.96208896]
[1772702024025,10.95782333,91.259,91.224,0.51710599]
[1772702025313,10.95733023,91.264,91.226,0.51710599]
[1772702025821,8.89382415,91.27,91.226,0.51710599]
[1772702026022,8.89382415,91.29,91.226,0.51710599]
[1772702026222,8.89382415,91.28,91.226,0.51710599]
[1772702026421,8.89382415,91.27,91.226,0.51710599]
[1772702027017,8.89382415,91.28,91.226,0.51710599]
[1772702027826,38.34397834,91.279,91.227,10.96166705]
[1772702028021,38.34397834,91.279,91.228,0.51710599]
[1772702028323,8.89382415,91.27,91.228,0.51710599]
[1772702031025,8.89382415,91.26,91.218,10.96263058]
[1772702031327,8.89382415,91.25,91.218,10.96263058]
[1772702031515,8.89382415,91.25,91.209,10.96383019]
[1772702031709,8.89382415,91.25,91.213,10.96330485]
[1772702031909,8.89382415,91.25,91.204,27.92800914]
[1772702032109,8.89382415,91.26,91.219,10.96261671]
[1772702032316,38.34817955,91.269,91.219,10.96261671]
[1772702032317,8.89382415,91.25,91.219,10.96261671]
[1772702032516,8.89382415,91.25,91.222,11.6743193]
[1772702032718,8.89382415,91.25,91.222,0.7121418]
[1772702032917,10.9590242,91.249,91.222,0.7121418]
[1772702033125,8.89382415,91.24,91.222,1e-08]
[1772702033331,38.35658472,91.249,91.222,1e-08]
[1772702034009,10.9590242,91.249,91.222,1e-08]
[1772702034211,54.77215408,91.288,91.224,0.51710599]
[1772702034411,8.89382415,91.27,91.224,0.51710599]
[1772702035131,38.34817955,91.269,91.226,0.51710599]
[1772702035331,8.89382415,91.26,91.226,0.51710599]
[1772702035732,38.34817955,91.269,91.226,0.51710599]
[1772702036717,10.95662273,91.269,91.226,0.51710599]
[1772702037232,38.3441634,91.279,91.228,0.51710599]
[1772702038314,38.3441634,91.279,91.23,0.51710599]
[1772702039823,8.89382415,91.26,91.222,1e-08]
[1772702040438,10.95782333,91.259,91.222,0.517106]
[1772702040742,10.9573168,91.264,91.222,0.517106]
[1772702041119,8.89382415,91.26,91.222,0.517106]
[1772702041644,8.89382415,91.26,91.222,1e-08]
[1772702042345,10.9590242,91.249,91.222,1e-08]
[1772702042921,10.95836173,91.255,91.222,1e-08]
[1772702045425,27.39526468,91.257,91.222,1e-08]
[1772702046424,10.95782333,91.259,91.222,1e-08]
[1772702046621,5.10909883,91.317,91.222,1e-08]
[1772702046826,8.89382415,91.28,91.222,1e-08]
[1772702047425,38.34397834,91.279,91.222,1e-08]
[1772702050129,8.89382415,91.27,91.222,1e-08]
[1772702050330,8.89382415,91.28,91.222,1e-08]
[1772702050744,10.95302248,91.299,91.223,0.51710599]
[1772702052235,38.33145867,91.309,91.226,0.51710599]
[1772702053527,10.95074355,91.318,91.229,0.51710599]
[1772702053744,10.95074355,91.318,91.234,0.51710599]
[1772702053949,10.94822584,91.339,91.243,0.51710599]
[1772702054249,38.31879044,91.339,91.253,0.51710599]
[1772702054432,10.94822584,91.339,91.254,0.51710599]
[1772702055046,10.94702733,91.349,91.255,4.82477569]
[1772702055232,10.94702733,91.349,91.259,0.51710599]
[1772702055437,10.94702733,91.349,91.264,0.28432314]
[1772702055625,10.94702733,91.349,91.265,0.51710599]
[1772702056240,10.94582909,91.359,91.27,0.51710599]
[1772702056535,8.89382415,91.35,91.271,0.51710599]
[1772702056738,8.89382415,91.34,91.271,0.51710599]
[1772702057632,8.89382415,91.35,91.271,0.51710599]
[1772702057833,8.89382415,91.34,91.274,0.51710599]
[1772702058231,8.89382415,91.35,91.274,0.51710599]
[1772702059347,3.69383402,91.376,91.274,0.51710599]
[1772702059654,8.89382415,91.35,91.274,0.51710599]
[1772702060154,10.94702733,91.349,91.277,0.51964173]
[1772702060845,10.94558947,91.361,91.277,0.51964173]
[1772702061728,10.94558947,91.361,91.28,0.51964173]
[1772702062436,0.1,91.37,91.284,3.69383402]
[1772702062636,0.1,91.37,91.29,0.51964173]
[1772702063829,8.99382415,91.37,91.29,0.51964173]
[1772702064043,8.89382415,91.36,91.29,0.51964173]
[1772702065854,8.89382415,91.36,91.285,2.19266089]
[1772702065855,38.31040181,91.359,91.293,0.51964173]
[1772702066249,10.94582909,91.359,91.293,0.51964173]
[1772702066555,38.31040181,91.359,91.293,0.51964173]
[1772702067651,38.31040181,91.359,91.294,10.95362236]
[1772702067952,8.89382415,91.34,91.294,10.95362236]
[1772702068542,8.89382415,91.34,91.294,11.47072835]
[1772702068760,8.89382415,91.34,91.294,10.95362236]
[1772702069751,38.31879044,91.339,91.287,10.9544623]
[1772702069941,38.31879044,91.339,91.288,0.51710599]
[1772702070538,38.31879044,91.339,91.287,10.9544623]
[1772702070539,8.89382415,91.33,91.287,10.9544623]
[1772702070733,8.89382415,91.33,91.285,2.19266089]
[1772702070953,38.31879044,91.339,91.285,2.19266089]
[1772702071156,38.31879044,91.339,91.287,0.51710599]
[1772702071837,38.31879044,91.339,91.285,2.19266089]
[1772702071838,27.36740688,91.35,91.289,0.51710599]
[1772702072153,27.36740688,91.35,91.29,0.51710599]
[1772702072659,36.26123103,91.35,91.29,0.51710599]
[1772702073759,10.94582909,91.359,91.292,0.51710599]
[1772702073951,8.89382415,91.35,91.292,0.28432314]
[1772702074138,8.89382415,91.35,91.293,0.51710599]
[1772702076657,10.94702733,91.349,91.294,38.33767826]
[1772702076859,38.31459566,91.349,91.295,0.51710599]
[1772702077063,38.31459566,91.349,91.294,10.95362236]
[1772702077064,8.89382415,91.34,91.294,10.95362236]